fUST/lending_fUST_20250115
["ID","MTS","AMOUNT","RATE_DAILY","PERIOD"]
[349006752,1736933447039,-151.0,0.000222,2]
[349006753,1736933447048,-825.07,0.00022201,2]
[349006754,1736933447058,-500.0,0.00022201,3]
[349006755,1736933447067,-126.08008336,0.00022338,2]
[349006756,1736933447079,-698.98991664,0.00022338,2]
[349006757,1736933447089,-231.00008336,0.00022338,3]
[349006764,1736934289113,161.650052,0.00013973,2]
[349006765,1736934299579,462.63,0.0001505,2]
[349006773,1736934449157,-190.5,0.0002,2]
[349006774,1736934449182,-300.0,0.00020271,2]
[349006775,1736934449212,-1590.31,0.00021093,3]
[349006776,1736934449238,-1590.31,0.0002123,3]
[349006777,1736934449264,-1590.31,0.00021367,3]
[349006778,1736934449290,-1590.31,0.00021504,3]
[349006779,1736934449315,-395.0,0.00021613,2]
[349006780,1736934449339,-1420.755,0.00021613,2]
[349006781,1736934449364,-1590.31,0.00021641,3]
[349006782,1736934449392,-881.96184918,0.00021778,3]
[349006835,1736934632171,-1291.39,0.00021093,3]
[349006837,1736934632181,-1040.27,0.00021093,3]
[349006839,1736934632191,-1439.76,0.00021093,2]
[349006841,1736934632201,-1291.39,0.0002123,3]
[349006843,1736934632211,-1040.27,0.0002123,3]
[349006845,1736934632221,-1439.76,0.0002123,2]
[349006847,1736934632230,-300.0,0.00021366,2]
[349006849,1736934632241,-1291.39,0.00021367,3]
[349006851,1736934632251,-1040.27,0.00021367,3]
[349006853,1736934632261,-1439.76,0.00021367,2]
[349006855,1736934632271,-1291.39,0.00021504,3]
[349006857,1736934632281,-1040.27,0.00021504,3]
[349006859,1736934632291,-1439.76,0.00021504,2]
[349006862,1736934632301,-395.0,0.00021613,2]
[349006865,1736934632312,-1291.39,0.00021641,3]
[349006868,1736934632323,-1040.27,0.00021641,3]
[349006871,1736934632333,-1439.76,0.00021641,2]
[349006874,1736934632343,-1291.39,0.00021778,3]
[349006877,1736934632352,-1040.27,0.00021778,3]
[349006880,1736934632361,-1439.76,0.00021778,2]
[349006882,1736934632370,-1603.87,0.000219,2]
[349006884,1736934632380,-1291.39,0.00021915,3]
[349006887,1736934632390,-1040.27,0.00021915,3]
[349006889,1736934632399,-1439.76,0.00021915,2]
[349006890,1736934632409,-156.0,0.00022,2]
[349006891,1736934632419,-1291.39,0.00022052,3]
[349006892,1736934632428,-1040.27,0.00022052,3]
[349006894,1736934632437,-1439.76,0.00022052,2]
[349006895,1736934632446,-500.0,0.00022189,3]
[349006897,1736934632455,-1291.39,0.00022189,3]
[349006899,1736934632465,-1040.27,0.00022189,3]
[349006901,1736934632474,-1439.76,0.00022189,2]
[349006903,1736934632483,-249.0,0.00022222,2]
[349006905,1736934632492,-470.17115781,0.00022244,2]
[349006907,1736934632510,-300.0,0.000223,10]
[349006908,1736934632521,-1291.39,0.00022326,3]
[349006909,1736934632530,-1040.27,0.00022326,3]
[349006910,1736934632541,-1439.76,0.00022326,2]
[349006911,1736934632551,-151.0,0.00022337,2]
[349006912,1736934632560,-1291.39,0.00022463,3]
[349006913,1736934632569,-1040.27,0.00022463,3]
[349006915,1736934632579,-1439.76,0.00022463,2]
[349006916,1736934632589,-321.887,0.000225,2]
[349006934,1736934632599,-1291.39,0.000226,3]
[349006936,1736934632757,-1040.27,0.000226,3]
[349006938,1736934632767,-1439.76,0.000226,2]
[349006940,1736934632777,-5064.42686889,0.00022712,5]
[349006942,1736934632787,-2799.40140669,0.00022712,5]
[349006944,1736934632798,-353.4540553,0.00022712,2]
[349006946,1736934632808,-353.4540553,0.00022712,2]
[349006948,1736934632818,-353.4540553,0.00022712,2]
[349006950,1736934632828,-353.4540553,0.00022712,2]
[349006952,1736934632837,-353.4540553,0.00022712,2]
[349006954,1736934632847,-706.0311016,0.00022712,2]
[349006956,1736934632857,-1291.39,0.00022737,3]
[349006958,1736934632868,-1040.27,0.00022737,3]
[349006960,1736934632877,-1439.76,0.00022737,2]
[349006962,1736934632887,-1200.0,0.00022814,2]
[349006964,1736934632896,-662.216,0.00022816,2]
[349006966,1736934632906,-1291.39,0.00022874,3]
[349006968,1736934632916,-1040.27,0.00022874,3]
[349006970,1736934632928,-1439.76,0.00022874,2]
[349006973,1736934632938,-812.00418302,0.0002291,5]
[349006975,1736934632950,-805.56,0.00022998,3]
[349006977,1736934632960,-1430.06,0.00022998,3]
[349006979,1736934632970,-1844.83,0.00022998,3]
[349006981,1736934632979,-3688.56,0.00022998,3]
[349006983,1736934632989,-500.0,0.00022999,3]
[349006985,1736934632999,-1009.70065498,0.00022999,3]
[349006987,1736934633008,-904.72,0.00022999,3]
[349006989,1736934633017,-500.0,0.00022999,3]
[349006991,1736934633026,-805.56,0.00022999,3]
[349006993,1736934633035,-7438.69753278,0.00023,2]
[349006995,1736934633046,-7438.69753278,0.00023,3]
[349006997,1736934633056,-200.0,0.00023,14]
[349006999,1736934633066,-7829.2,0.00023,2]
[349007001,1736934633075,-170.598,0.00023,2]
[349007003,1736934633086,-1291.39,0.00023011,3]
[349007005,1736934633096,-1040.27,0.00023011,3]
[349007007,1736934633106,-1439.76,0.00023011,2]
[349007009,1736934633116,-156.0,0.00023014,2]
[349007010,1736934633125,-209.473462,0.00023131,2]
[349007013,1736934633136,-500.0,0.00023135,2]
[349007015,1736934633147,-179.33729529,0.00023135,2]
[349007017,1736934633157,-1430.06,0.00023135,3]
[349007019,1736934633167,-1844.83,0.00023135,3]
[349007021,1736934633177,-3688.56,0.00023135,3]
[349007023,1736934633187,-904.72,0.00023136,3]
[349007025,1736934633197,-500.0,0.00023136,3]
[349007027,1736934633206,-1291.39,0.00023148,3]
[349007029,1736934633216,-1040.27,0.00023148,3]
[349007031,1736934633226,-1439.76,0.00023148,2]
[349007033,1736934633235,-420.0,0.00023233,2]
[349007035,1736934633246,-1430.06,0.00023272,3]
[349007037,1736934633256,-1844.83,0.00023272,3]
[349007039,1736934633266,-3688.56,0.00023272,3]
[349007041,1736934633276,-904.72,0.00023273,3]
[349007043,1736934633286,-319.1256,0.00023273,3]
[349007045,1736934633297,-1291.39,0.00023285,3]
[349007047,1736934633308,-1040.27,0.00023285,3]
[349007049,1736934633321,-1439.76,0.00023285,2]
[349007051,1736934633331,-1241.0,0.00023328,7]
[349007054,1736934633341,-805.56,0.00023409,3]
[349007056,1736934633351,-1430.06,0.00023409,3]
[349007058,1736934633361,-1844.83,0.00023409,3]
[349007059,1736934633371,-3688.56,0.00023409,3]
[349007062,1736934633380,-904.72,0.0002341,3]
[349007064,1736934633390,-1291.39,0.00023422,3]
[349007066,1736934633400,-1040.27,0.00023422,3]
[349007068,1736934633410,-1439.76,0.00023422,2]
[349007070,1736934633420,-161.650052,0.00023435,2]
[349007072,1736934633430,-805.56,0.00023439,3]
[349007074,1736934633440,-225.48998,0.00023439,7]
[349007076,1736934633449,-152.280382,0.00023439,7]
[349007078,1736934633459,-151.0,0.00023439,7]
[349007080,1736934633468,-8694.78480092,0.00023439,2]
[349007082,1736934633478,-5000.0,0.00023439,2]
[349007084,1736934633488,-5000.0,0.00023439,2]
[349007086,1736934633498,-5000.0,0.00023439,2]
[349007088,1736934633507,-5000.0,0.00023439,2]
[349007090,1736934633517,-805.56,0.00023454,3]
[349007092,1736934633527,-209.473462,0.00023455,2]
[349007094,1736934633537,-500.0,0.000235,2]
[349007096,1736934633549,-600.0,0.000235,2]
[349007098,1736934633559,-151.872541,0.000235,7]
[349007100,1736934633569,-284.44647,0.000235,7]
[349007102,1736934633578,-284.44647,0.000235,7]
[349007104,1736934633588,-151.0,0.000235,7]
[349007106,1736934633598,-151.0,0.000235,7]
[349007108,1736934633608,-151.0,0.000235,7]
[349007109,1736934633618,-151.0,0.000235,7]
[349007111,1736934633628,-956.12917,0.000235,7]
[349007113,1736934633637,-956.12917,0.000235,7]
[349007115,1736934633647,-208.961666,0.000235,7]
[349007117,1736934633657,-208.961666,0.000235,7]
[349007119,1736934633666,-11246.34964625,0.000235,3]
[349007121,1736934633677,-1430.06,0.00023546,3]
[349007123,1736934633689,-1844.83,0.00023546,3]
[349007125,1736934633699,-3688.56,0.00023546,3]
[349007127,1736934633709,-904.72,0.00023547,3]
[349007129,1736934633720,-1291.39,0.00023559,3]
[349007131,1736934633729,-1040.27,0.00023559,3]
[349007133,1736934633739,-1439.76,0.00023559,2]
[349007135,1736934633748,-156.2996964,0.00023568,2]
[349007137,1736934633759,-156.2996964,0.00023568,2]
[349007139,1736934633769,-156.2996964,0.00023568,2]
[349007141,1736934633778,-156.2996964,0.00023568,2]
[349007143,1736934633788,-156.2996964,0.00023568,2]
[349007145,1736934633798,-156.2996964,0.00023568,2]
[349007147,1736934633808,-156.2996964,0.00023568,2]
[349007149,1736934633818,-156.2996964,0.00023568,2]
[349007151,1736934633827,-156.2996964,0.00023568,2]
[349007153,1736934633837,-156.2996964,0.00023568,2]
[349007155,1736934633848,-156.2996964,0.00023568,2]
[349007158,1736934633858,-156.2996964,0.00023568,2]
[349007159,1736934633868,-156.2996964,0.00023568,2]
[349007161,1736934633878,-156.2996964,0.00023568,2]
[349007163,1736934633888,-156.2996964,0.00023568,2]
[349007165,1736934633897,-156.2996964,0.00023568,2]
[349007167,1736934633907,-156.2996964,0.00023568,2]
[349007169,1736934633917,-156.2996964,0.00023568,2]
[349007171,1736934633927,-156.2996964,0.00023568,2]
[349007173,1736934633937,-156.29,0.00023568,2]
[349007175,1736934633946,-234.4495446,0.00023568,2]
[349007177,1736934633955,-234.4495446,0.00023568,2]
[349007179,1736934633965,-234.4495446,0.00023568,2]
[349007181,1736934633975,-234.4495446,0.00023568,2]
[349007183,1736934633985,-234.4495446,0.00023568,2]
[349007186,1736934633999,-234.4495446,0.00023568,2]
[349007188,1736934634009,-234.4495446,0.00023568,2]
[349007190,1736934634019,-234.4495446,0.00023568,2]
[349007192,1736934634029,-234.4495446,0.00023568,2]
[349007194,1736934634038,-234.4495446,0.00023568,2]
[349007196,1736934634049,-234.4495446,0.00023568,2]
[349007198,1736934634059,-234.4495446,0.00023568,2]
[349007200,1736934634068,-234.4495446,0.00023568,2]
[349007202,1736934634077,-234.4495446,0.00023568,2]
[349007204,1736934634087,-234.4495446,0.00023568,2]
[349007206,1736934634096,-234.4495446,0.00023568,2]
[349007208,1736934634106,-234.4495446,0.00023568,2]
[349007210,1736934634115,-234.4495446,0.00023568,2]
[349007212,1736934634124,-234.4495446,0.00023568,2]
[349007214,1736934634134,-234.44,0.00023568,2]
[349007216,1736934634143,-176.57524629,0.00023568,2]
[349007218,1736934634153,-176.57524629,0.00023568,2]
[349007220,1736934634162,-176.57524629,0.00023568,2]
[349007222,1736934634172,-176.57524629,0.00023568,2]
[349007224,1736934634181,-176.57,0.00023568,2]
[349007226,1736934634191,-165.53929339,0.00023568,2]
[349007228,1736934634201,-165.53929339,0.00023568,2]
[349007230,1736934634210,-165.53929339,0.00023568,2]
[349007232,1736934634220,-165.53929339,0.00023568,2]
[349007234,1736934634230,-165.53929339,0.00023568,2]
[349007236,1736934634239,-165.53929339,0.00023568,2]
[349007238,1736934634249,-165.53929339,0.00023568,2]
[349007240,1736934634259,-165.53,0.00023568,2]
[349007242,1736934634269,-2000.0,0.000236,2]
[349007244,1736934634279,-2000.0,0.000236,2]
[349007246,1736934634288,-805.56,0.00023666,3]
[349007248,1736934634300,-527787.78858392,0.00023668,61]
[349007250,1736934634310,-164.85360292,0.00023668,2]
[349007252,1736934634321,-197910.71341405,0.00023668,61]
[349007583,1736934637961,-257.5359302,0.00023567,2]
[349007584,1736934637971,-163.62769956,0.00023567,2]
[349007585,1736934637981,-9016.54226845,0.00023668,61]
[349008099,1736934643275,-162.53405297,0.00021952,2]
[349008101,1736934643286,-163.12950142,0.00023667,2]
[349008104,1736934643296,-1474.33644553,0.00023668,61]
[349008113,1736934643380,-106772.19288109,0.00023668,61]
[349008115,1736934643390,-483861.13219161,0.00023668,61]
[349008117,1736934643401,-2119.41891469,0.00023668,61]
[349008119,1736934643412,-1582.80045956,0.00023668,61]
[349008371,1736934646049,-24142.23812719,0.00023668,61]
[349008381,1736934646146,-14836.21703528,0.00023668,61]
[349008383,1736934646159,-1944.0,0.00023668,61]
[349009827,1736935212791,161.650052,0.00013973,2]
[349009829,1736935651154,-1794.0,0.00021,2]
[349009830,1736935651175,-395.0,0.00021397,2]
[349009831,1736935651196,-1000.0,0.00021568,2]
[349009832,1736935651216,-150.0,0.00021568,2]
[349009833,1736935651238,-430.57943881,0.000216,2]
[349009834,1736935651258,-430.57943881,0.000216,2]
[349009835,1736935651279,-1039.0,0.0002184,2]
[349009836,1736935651300,-300.0,0.00021897,2]
[349009837,1736935651320,-1545.96736175,0.00021898,2]
[349009838,1736935651340,-1443.48,0.000219,2]
[349009839,1736935651363,-1000.0,0.000219,2]
[349009840,1736935651384,-500.0,0.00022035,3]
[349009841,1736935651411,-500.0,0.00022035,3]
[349009842,1736935651431,-500.0,0.00022035,3]
[349009843,1736935651455,-500.0,0.00022035,2]
[349009844,1736935651476,-206.78032551,0.00022035,3]
[349009845,1736935651499,-500.0,0.00022035,3]
[349009846,1736935651519,-500.0,0.0002205,3]
[349009847,1736935651540,-500.0,0.0002205,3]
[349009848,1736935651561,-557.52407295,0.0002205,3]
[349009849,1736935651581,-503.06404396,0.0002205,3]
[349009850,1736935651601,-498.85172314,0.0002205,3]
[349009851,1736935651624,-399.44518828,0.0002205,3]
[349009852,1736935651644,-500.0,0.0002205,3]
[349009853,1736935651665,-502.67636188,0.0002205,3]
[349009854,1736935651689,-505.17158871,0.0002205,3]
[349009855,1736935651711,-500.0,0.0002205,3]
[349009856,1736935651731,-500.0,0.0002205,3]
[349009857,1736935651752,-503.83064283,0.0002205,3]
[349009858,1736935651773,-506.41675492,0.0002205,3]
[349009859,1736935651794,-503.02533792,0.0002205,3]
[349009860,1736935651815,-502.48549317,0.0002205,3]
[349009861,1736935651835,-507.72314955,0.0002205,3]
[349009862,1736935651855,-500.0,0.0002205,3]
[349009863,1736935651878,-204.9753616,0.0002205,3]
[349009864,1736935651898,-503.43588272,0.0002205,3]
[349009865,1736935651918,-503.57965041,0.0002205,3]
[349009866,1736935651939,-500.0,0.0002205,3]
[349009867,1736935651960,-500.0,0.0002205,3]
[349009868,1736935651981,-500.0,0.0002205,3]
[349009869,1736935652004,-604.17,0.0002205,3]
[349009870,1736935652024,-500.0,0.0002205,3]
[349009871,1736935652045,-500.0,0.0002205,3]
[349009872,1736935652068,-500.0,0.0002205,3]
[349009873,1736935652088,-1132.13,0.0002205,3]
[349009874,1736935652108,-507.57101188,0.0002205,3]
[349009875,1736935652129,-500.0,0.0002205,3]
[349009876,1736935652154,-274.17700243,0.0002205,3]
[349009877,1736935652282,-500.0,0.0002205,3]
[349009878,1736935652303,-508.5808357,0.0002205,3]
[349009879,1736935652328,-500.0,0.0002205,3]
[349009880,1736935652350,-581.77834524,0.0002205,3]
[349009881,1736935652374,-1542.48,0.0002205,3]
[349009882,1736935652394,-500.0,0.0002205,3]
[349009883,1736935652414,-500.0,0.0002205,3]
[349009884,1736935652435,-500.0,0.0002205,3]
[349009885,1736935652455,-500.0,0.0002205,3]
[349009886,1736935652475,-514.23370844,0.0002205,3]
[349009887,1736935652495,-500.0,0.0002205,3]
[349009888,1736935652516,-500.0,0.0002205,3]
[349009889,1736935652538,-500.0,0.0002205,3]
[349009890,1736935652561,-500.0,0.0002205,3]
[349009891,1736935652583,-500.0,0.0002205,3]
[349009892,1736935652604,-500.0,0.0002205,3]
[349009893,1736935652628,-500.0,0.0002205,3]
[349009894,1736935652648,-2920.11,0.0002205,3]
[349009895,1736935652673,-504.40002841,0.0002205,3]
[349009896,1736935652696,-500.0,0.0002205,3]
[349009897,1736935652719,-500.0,0.0002205,3]
[349009898,1736935652743,-500.0,0.0002205,3]
[349009899,1736935652764,-500.0,0.0002205,3]
[349009900,1736935652784,-257.12970042,0.0002205,3]
[349009901,1736935652804,-496.97954478,0.0002205,3]
[349009902,1736935652824,-500.0,0.0002205,3]
[349009903,1736935652845,-500.0,0.0002205,3]
[349009904,1736935652869,-500.0,0.0002205,3]
[349009905,1736935652891,-500.0,0.0002205,3]
[349009906,1736935652910,-500.0,0.0002205,3]
[349009907,1736935652930,-503.86181261,0.0002205,3]
[349009908,1736935652950,-500.0,0.0002205,3]
[349009909,1736935652970,-500.0,0.0002205,3]
[349009910,1736935652990,-500.0,0.0002205,3]
[349009911,1736935653011,-500.0,0.0002205,3]
[349009912,1736935653032,-500.0,0.0002205,3]
[349009913,1736935653053,-500.0,0.0002205,3]
[349009914,1736935653076,-512.06383703,0.0002205,3]
[349009915,1736935653097,-500.0,0.0002205,3]
[349009916,1736935653121,-500.0,0.0002205,3]
[349009917,1736935653142,-500.0,0.0002205,3]
[349009918,1736935653164,-515.98575392,0.0002205,3]
[349009919,1736935653185,-1000.0,0.00022051,2]
[349009920,1736935653208,-500.0,0.00022172,3]
[349009921,1736935653236,-500.0,0.00022172,2]
[349009922,1736935653259,-500.0,0.00022172,3]
[349009923,1736935653280,-170.598,0.00022173,2]
[349009924,1736935653301,-1132.13,0.00022187,3]
[349009925,1736935653324,-1542.48,0.00022187,3]
[349009926,1736935653346,-500.0,0.00022187,3]
[349009927,1736935653369,-500.0,0.00022187,3]
[349009928,1736935653390,-500.0,0.00022187,3]
[349009929,1736935653412,-500.0,0.00022187,3]
[349009930,1736935653433,-500.0,0.00022187,3]
[349009931,1736935653455,-2920.11,0.00022187,3]
[349009932,1736935653476,-500.0,0.00022187,3]
[349009933,1736935653499,-500.0,0.00022187,3]
[349009934,1736935653521,-500.0,0.00022187,3]
[349009935,1736935653542,-617.36,0.00022187,3]
[349009936,1736935653564,-305.85632474,0.00022187,3]
[349009937,1736935653587,-500.0,0.00022187,3]
[349009938,1736935653612,-500.0,0.00022187,3]
[349009939,1736935653634,-611.18,0.00022187,3]
[349009940,1736935653655,-500.0,0.00022187,3]
[349009941,1736935653688,-500.0,0.00022187,3]
[349009942,1736935653715,-500.0,0.00022187,3]
[349009943,1736935653739,-500.0,0.00022187,3]
[349009944,1736935653762,-500.0,0.00022187,3]
[349009945,1736935653784,-500.0,0.00022187,3]
[349009946,1736935653806,-500.0,0.00022187,3]
[349009947,1736935653828,-500.0,0.00022187,3]
[349009948,1736935653849,-532.81738888,0.00022187,3]
[349009949,1736935653874,-500.0,0.00022187,3]
[349009950,1736935653897,-500.0,0.00022188,2]
[349009951,1736935653918,-165.44149425,0.00022188,2]
[349009952,1736935653941,-500.0,0.00022188,2]
[349009953,1736935653965,-500.0,0.00022188,2]
[349009954,1736935653990,-500.0,0.00022188,2]
[349009955,1736935654013,-317.99639497,0.00022188,2]
[349009956,1736935654035,-500.0,0.00022188,2]
[349009957,1736935654060,-500.0,0.00022188,2]
[349009958,1736935654086,-500.0,0.00022188,2]
[349009959,1736935654109,-500.0,0.00022188,2]
[349009960,1736935654134,-233.07728268,0.00022188,2]
[349009961,1736935654157,-500.0,0.00022188,2]
[349009962,1736935654180,-500.0,0.00022188,2]
[349009963,1736935654202,-547.82679871,0.00022188,2]
[349009964,1736935654226,-500.0,0.00022188,2]
[349009965,1736935654248,-480.59333692,0.00022188,2]
[349009966,1736935654271,-500.0,0.00022188,2]
[349009967,1736935654294,-500.0,0.00022188,2]
[349009968,1736935654321,-500.0,0.00022188,2]
[349009969,1736935654344,-500.0,0.00022188,2]
[349009970,1736935654368,-500.0,0.00022188,2]
[349009971,1736935654391,-500.0,0.00022188,2]
[349009972,1736935654414,-500.0,0.00022188,2]
[349009973,1736935654437,-500.0,0.00022188,2]
[349009974,1736935654461,-500.0,0.00022188,2]
[349009975,1736935654482,-500.0,0.00022189,3]
[349009976,1736935654506,-500.0,0.00022189,3]
[349009977,1736935654530,-227.98302942,0.00022189,3]
[349009978,1736935654551,-502.1132483,0.00022189,3]
[349009979,1736935654575,-500.0,0.00022189,3]
[349009980,1736935654598,-500.0,0.00022189,3]
[349009981,1736935654619,-513.59215571,0.00022189,3]
[349009982,1736935654643,-500.0,0.00022189,3]
[349009983,1736935654665,-500.0,0.00022189,3]
[349009984,1736935654687,-500.0,0.00022189,3]
[349009985,1736935654709,-500.0,0.00022189,3]
[349009986,1736935654734,-300.0,0.000223,10]
[349009987,1736935654758,-500.0,0.00022309,3]
[349009988,1736935654782,-500.0,0.00022309,2]
[349009989,1736935654805,-500.0,0.00022309,3]
[349009990,1736935654829,-604.17,0.00022324,3]
[349009991,1736935654851,-1132.13,0.00022324,3]
[349009992,1736935654875,-1542.48,0.00022324,3]
[349009993,1736935654897,-500.0,0.00022324,3]
[349009994,1736935654918,-2920.11,0.00022324,3]
[349009995,1736935654939,-500.0,0.00022324,3]
[349009996,1736935655082,-500.0,0.00022324,3]
[349009997,1736935655106,-500.0,0.00022324,3]
[349009998,1736935655129,-500.0,0.00022324,3]
[349009999,1736935655152,-500.0,0.00022324,3]
[349010000,1736935655174,-209.473462,0.00022385,2]
[349010001,1736935655197,-500.0,0.00022446,3]
[349010002,1736935655220,-500.0,0.00022446,2]
[349010003,1736935655243,-500.0,0.00022446,3]
[349010004,1736935655264,-1132.13,0.00022461,3]
[349010005,1736935655286,-1542.48,0.00022461,3]
[349010006,1736935655308,-636.56,0.00022461,3]
[349010007,1736935655330,-2920.11,0.00022461,3]
[349010008,1736935655354,-540.32,0.00022461,3]
[349010009,1736935655378,-500.0,0.00022461,3]
[349010010,1736935655400,-298.48,0.00022461,3]
[349010011,1736935655423,-500.0,0.00022461,3]
[349010012,1736935655448,-500.0,0.00022461,3]
[349010013,1736935655471,-308.384,0.0002249,2]
[349010014,1736935655495,-500.0,0.00022583,3]
[349010015,1736935655520,-500.0,0.00022583,2]
[349010016,1736935655543,-500.0,0.00022583,3]
[349010017,1736935655568,-1132.13,0.00022598,3]
[349010018,1736935655591,-1542.48,0.00022598,3]
[349010019,1736935655613,-2920.11,0.00022598,3]
[349010020,1736935655636,-641.46,0.00022598,3]
[349010021,1736935655657,-500.0,0.00022598,3]
[349010022,1736935655679,-500.0,0.00022598,3]
[349010023,1736935655703,-604.17,0.0002272,3]
[349010024,1736935655723,-151.0,0.0002272,2]
[349010025,1736935655746,-500.0,0.0002272,3]
[349010026,1736935655770,-500.0,0.0002272,2]
[349010027,1736935655793,-500.0,0.0002272,3]
[349010028,1736935655814,-1132.13,0.00022735,3]
[349010029,1736935655838,-1542.48,0.00022735,3]
[349010030,1736935655859,-2920.11,0.00022735,3]
[349010031,1736935655882,-340.12,0.00022735,3]
[349010032,1736935655904,-500.0,0.00022735,3]
[349010033,1736935655926,-176.71377593,0.00022828,2]
[349010034,1736935655950,-500.0,0.00022857,3]
[349010035,1736935655975,-500.0,0.00022857,2]
[349010036,1736935655998,-500.0,0.00022857,3]
[349010037,1736935656020,-604.17,0.00022872,3]
[349010038,1736935656042,-1132.13,0.00022872,3]
[349010039,1736935656067,-1542.48,0.00022872,3]
[349010040,1736935656091,-2920.11,0.00022872,3]
[349010041,1736935656116,-218.46,0.00022872,3]
[349010042,1736935656141,-366.3670132,0.000229,2]
[349010114,1736935836576,-1299.13,0.000219,2]
[349010116,1736935836586,-300.0,0.00022034,2]
[349010118,1736935836595,-500.0,0.00022035,3]
[349010121,1736935836605,-500.0,0.00022035,3]
[349010122,1736935836616,-500.0,0.00022035,3]
[349010125,1736935836625,-500.0,0.00022035,3]
[349010127,1736935836635,-500.0,0.00022035,3]
[349010128,1736935836644,-500.0,0.00022035,3]
[349010130,1736935836653,-503.48,0.00022035,3]
[349010132,1736935836663,-500.0,0.00022035,3]
[349010133,1736935836672,-500.0,0.00022035,3]
[349010135,1736935836681,-801.92,0.00022035,3]
[349010137,1736935836691,-500.0,0.00022035,3]
[349010139,1736935836701,-500.0,0.00022035,3]
[349010141,1736935836710,-500.0,0.00022035,3]
[349010143,1736935836719,-500.0,0.00022035,3]
[349010145,1736935836728,-1153.74,0.00022035,3]
[349010147,1736935836737,-532.2452484,0.00022035,3]
[349010149,1736935836748,-500.0,0.00022035,3]
[349010151,1736935836758,-574.07274409,0.00022035,3]
[349010153,1736935836767,-2068.41,0.00022035,3]
[349010155,1736935836777,-500.0,0.00022049,3]
[349010157,1736935836787,-500.0,0.00022049,3]
[349010159,1736935836797,-500.0,0.00022049,3]
[349010161,1736935836807,-500.0,0.00022049,2]
[349010163,1736935836816,-532.11459383,0.0002205,3]
[349010165,1736935836825,-500.0,0.0002205,3]
[349010167,1736935836835,-2390.95,0.0002205,3]
[349010169,1736935836844,-500.0,0.0002205,3]
[349010171,1736935836855,-500.0,0.0002205,3]
[349010173,1736935836865,-500.0,0.0002205,3]
[349010176,1736935836875,-500.0,0.0002205,3]
[349010178,1736935836884,-500.0,0.0002205,3]
[349010180,1736935836894,-500.0,0.0002205,3]
[349010182,1736935836903,-500.0,0.0002205,3]
[349010184,1736935836913,-500.0,0.0002205,3]
[349010186,1736935836923,-500.0,0.0002205,3]
[349010188,1736935836932,-500.0,0.0002205,3]
[349010190,1736935836943,-425.563702,0.0002205,3]
[349010192,1736935836952,-500.0,0.0002205,3]
[349010193,1736935836961,-500.0,0.0002205,3]
[349010194,1736935836971,-500.0,0.0002205,3]
[349010195,1736935836980,-500.0,0.0002205,3]
[349010196,1736935836990,-500.0,0.0002205,3]
[349010197,1736935836999,-500.0,0.0002205,3]
[349010198,1736935837008,-500.0,0.0002205,3]
[349010199,1736935837018,-500.0,0.0002205,3]
[349010200,1736935837028,-500.0,0.0002205,3]
[349010201,1736935837038,-500.0,0.0002205,3]
[349010202,1736935837047,-500.0,0.0002205,3]
[349010203,1736935837057,-500.0,0.0002205,3]
[349010204,1736935837066,-500.0,0.0002205,3]